Cogmind - Beta 12 X6 @@@ ROGUE MODE // 2023.02.11 @ 18:19:14 Player: Lunatic Blue Result: Destroyed by DAS Turret with DAS Cannon Performance ------------- Evolutions (1) 500 Regions Visited (5) 1000 Robots Destroyed (63) 315 Value Destroyed (1228) 1228 Prototype IDs (9) 180 Alien Tech Used (0) 0 Bonus (-21) -21 TOTAL SCORE: 3202 Bonus ------- Friendly Fire -21 Cogmind --------- Core Integrity 0/400 Matter 271/300 Energy 250/250 System Corruption 9% Temperature Cool (0) Movement Treading (240) Ox1 Location -9/Exiles Parts ------- > --- POWER (1) -------- Ion Engine > --- PROPULSION (2) --- Improved Treads Improved Treads > --- UTILITY (4) ------ Huge Storage Unit Advanced Targeting Computer Advanced Weapon Cycler > --- WEAPON (2) ------- Improved Assault Rifle Improved Assault Rifle > --- INVENTORY (25) --- Reinforced Fission Core Improved Treads Compact Wheel Gravity Neutralizer Machine Analyzer Experimental Sensor Array Signal Interpreter 8R-AWN's Armor/EX Hacking Suite Hacking Suite High-powered Tractor Beam AS-neutralizer No. 17b Improved Assault Rifle Improved Assault Rifle Improved Assault Rifle Improved Light Cannon Improved Light Cannon Improved Datajack Maul Peak State ------------ > --- POWER ------------ Ion Engine > --- PROPULSION ------- Improved Treads Improved Treads > --- UTILITY ---------- Huge Storage Unit Gravity Neutralizer Advanced Targeting Computer Advanced Weapon Cycler > --- WEAPON ----------- Improved Assault Rifle Improved Assault Rifle > --- INVENTORY -------- Reinforced Fission Core Improved Treads Compact Wheel Machine Analyzer Experimental Sensor Array Signal Interpreter Hacking Suite Hacking Suite High-powered Tractor Beam AS-neutralizer No. 17b Improved Assault Rifle Improved Assault Rifle Improved Assault Rifle Improved Light Cannon Improved Light Cannon Rocket Launcher Improved Datajack Maul [Rating: 34] Favorites ----------- Power Cooled Ion Engine Engine Cooled Ion Engine Power Core Light Nuclear Core Propulsion Compact Wheel Treads Light Treads Leg Aluminum Leg Wheel Compact Wheel Utility Huge Storage Unit Device Heat Sink Storage Huge Storage Unit Processor Targeting Computer Hackware Hacking Suite Protection Light Armor Plating Weapon Autogun Energy Gun Medium Laser Ballistic Gun Autogun Launcher Rocket Launcher Special Melee Weapon Improved Datajack Build | -11 -10 -10 -9 -9 -9 ------- Run | Jun Mat Min Mat Min Exi Slots Evolved 2 | . . . 2 . . Power . | . . . . . . Propulsion . | . . . . . . Utility 2 | . . . 2 . . Weapon . | . . . . . . Parts Attached 50 | . 16 . 17 2 15 Power 5 | . 2 . 1 . 2 Engine 4 | . 2 . 1 . 1 Core 1 | . . . . . 1 Reactor . | . . . . . . Propulsion 13 | . 4 . 5 1 3 Treads 9 | . 2 . 3 1 3 Leg . | . . . . . . Wheel 4 | . 2 . 2 . . Hover . | . . . . . . Flight . | . . . . . . Utility 12 | . 3 . 4 1 4 Device 6 | . . . 1 1 4 Storage 1 | . 1 . . . . Processor 2 | . 1 . 1 . . Hackware 1 | . . . 1 . . Protection 2 | . 1 . 1 . . Artifact . | . . . . . . Weapon 20 | . 7 . 7 . 6 Energy Gun 2 | . 2 . . . . Energy Cannon . | . . . . . . Ballistic Gun 15 | . 5 . 6 . 4 Ballistic Cannon . | . . . . . . Launcher 2 | . . . . . 2 Special Weapon . | . . . . . . Impact Weapon . | . . . . . . Slashing Weapon . | . . . . . . Piercing Weapon . | . . . . . . Special Melee Weapon 1 | . . . 1 . . Unidentified Prototypes 5 | . 1 . 1 . 3 Parts Lost 18 | . 1 . 7 1 9 Power 3 | . . . 1 . 2 Propulsion 6 | . 1 . 3 . 2 Utility 4 | . . . 1 1 2 Weapon 5 | . . . 2 . 3 Highest Loss Streak 8 | . 1 . 3 1 8 To Critical Strikes 4 | . . . . . 4 Average Slot Usage (%) 98 | . 97 100 97 99 96 Engine 12 | . 14 14 11 11 10 Treads 12 | . 13 14 10 11 14 Wheel 11 | . 13 14 10 11 7 Device 4 | . . . 8 7 10 Storage 12 | . 14 14 11 11 11 Processor 10 | . 10 14 4 11 11 Hackware 5 | . . . 11 11 9 Protection 2 | . 2 . 6 3 . Ballistic Gun 23 | . 25 28 21 22 20 Naked Turns . | . . . . . . Heaviest Build 98 | 11 94 94 98 97 98 Greatest Support 46 | 20 20 16 16 16 46 Greatest Overweight (x) 6 | . 5 5 6 6 5 Average Overweight (x) 4 | . 4 5 5 5 4 Largest Inventory Capacity 25 | 8 25 25 25 25 25 Average Capacity 24 | 8 24 25 25 25 25 Most Carried 25 | 6 25 25 25 25 25 Average Carried 22 | 6 19 24 24 24 23 Final Capacity 25 | 8 25 25 25 25 25 Final Carried 25 | 6 24 25 24 25 21 Class Distribution -------------------- 100% | Mutant Dominant Class ---------------- Mutant | -10/Materials Mutant | -10/Mines Mutant | -9/Materials Mutant | -9/Mines Mutant | -9/Exiles Resources | -11 -10 -10 -9 -9 -9 ----------- Run | Jun Mat Min Mat Min Exi Matter Collected 2336 | 200 634 52 719 183 548 Remotely . | . . . . . . Salvage Created 2319 | . 674 . 1386 132 127 Parts 148 | . 49 . 85 7 7 Haulers Intercepted 4 | . 2 . 2 . . Recyclers Shooed 6 | . . . 6 . . Parts Field Recycled . | . . . . . . Retrieved Matter . | . . . . . . Parts Self-Destructed . | . . . . . . Prevented . | . . . . . . Kills | -11 -10 -10 -9 -9 -9 ------- Run | Jun Mat Min Mat Min Exi Combat Hostiles Destroyed 41 | . 18 . 16 3 4 Guns 38 | . 18 . 16 3 1 AOE 3 | . . . . . 3 Classes Destroyed 11 | . 5 . 4 1 1 Builder 1 | . . . 1 . . Hauler 4 | . 2 . 2 . . Recycler 7 | . . . 7 . . Mechanic 1 | . . . 1 . . Operator 4 | . 2 . 2 . . Watcher 8 | . 3 . 5 . . Swarmer 15 | . 9 . 6 . . Grunt 17 | . 9 . 6 2 . Brawler 1 | . . . . 1 . Sentry 4 | . . . 4 . . Assembled 3 | . . . . . 3 Best Kill Streak 7 | . 3 . 7 3 3 Combat Bots Only 3 | . 3 . 3 3 3 Max Kills in Single Turn 2 | . 2 . 2 1 2 Gunslinging . | . . . . . . Exploded 2 | . . . . . 2 Melee . | . . . . . . Uniques/NPCs Destroyed 1 | . . . . . 1 8R-AWN (-9/Exiles) Combat | -11 -10 -10 -9 -9 -9 -------- Run | Jun Mat Min Mat Min Exi Damage Taken 2774 | . 502 . 942 82 1248 Core 517 | . 103 . 154 . 260 Absorbed by Shields . | . . . . . . Redirected to Shielding 6 | . 6 . . . . Core Remaining (%) 79 | 100 . 58 . . . Volleys Fired 170 | . 47 . 82 7 34 Largest 2 | . 2 . 2 2 2 Hottest 90 | . 90 . 46 46 46 Shots Fired 342 | . 96 . 164 17 65 Gun 338 | . 96 . 164 17 61 Cannon . | . . . . . . Launcher 4 | . . . . . 4 Special . | . . . . . . Kinetic 322 | . 80 . 164 17 61 Thermal . | . . . . . . Explosive 4 | . . . . . 4 Electromagnetic 16 | . 16 . . . . Robot Hit Streak 29 | . 8 . 11 6 29 Robot Miss Streak 5 | . 5 . 3 1 1 Penetration Max . | . . . . . . Secondary Targets 4 | . . . 4 . . Max Gunslinging Chain 1 | . . . 1 . . Shots Hit Robots 240 | . 57 . 115 12 56 Core Hits 104 | . 36 . 46 4 18 Critical Kills . | . . . . . . Critical Parts Destroyed 1 | . . . 1 . . Critical Strikes 1 | . . . 1 . . Destroy 1 | . . . 1 . . Melee Attacks . | . . . . . . Impact . | . . . . . . Slashing . | . . . . . . Piercing . | . . . . . . Sneak Attacks . | . . . . . . Combat Hostiles . | . . . . . . Follow-up Attacks . | . . . . . . Damage Inflicted 3724 | . 837 . 1795 181 911 Guns 3598 | . 830 . 1784 181 803 Cannons . | . . . . . . Explosions 108 | . . . . . 108 Melee . | . . . . . . Ramming 18 | . 7 . 11 . . Kinetic 3507 | . 739 . 1784 181 803 Thermal . | . . . . . . Explosive 108 | . . . . . 108 Electromagnetic 91 | . 91 . . . . Impact . | . . . . . . Slashing . | . . . . . . Piercing . | . . . . . . Highest Corruption 9 | . 9 9 4 9 9 Average Corruption 7 | . 6 9 4 7 9 Corruption Purged . | . . . . . . Corruption Blocked . | . . . . . . Effects 112 | . 35 21 4 25 27 Message Errors 19 | . 5 5 2 3 4 Matter Fused 42 | . 13 8 . 11 10 Heat Flow Errors 10 | . 5 2 . 2 1 Energy Discharges 13 | . 3 1 1 3 5 Parts Rejected 1 | . . . . 1 . Data Loss (minor) 11 | . 2 5 1 1 2 Data Loss (major) 7 | . 4 . . 1 2 Misfires 7 | . 2 . . 3 2 Alerts 1 | . 1 . . . . Weapon Failures 1 | . . . . . 1 Overload Shots . | . . . . . . Overflow Damage . | . . . . . . Projectiles . | . . . . . . Explosions . | . . . . . . Melee . | . . . . . . Knockbacks . | . . . . . . Impact . | . . . . . . Kinetic . | . . . . . . Secondary . | . . . . . . Self-Inflicted Damage 33 | . 1 . 5 . 27 Shots 1 | . . . . . 1 Rammed 3 | . 2 . 1 . . Targets Rammed 3 | . 2 . 1 . . Kicked . | . . . . . . Crushed . | . . . . . . Highest Temperature 325 | . 258 235 325 221 140 Average Temperature 62 | . 51 101 78 100 51 Received Heat Transfer 501 | . 132 . 351 18 . Siege Activations . | . . . . . . Robots Corrupted . | . . . . . . Combat Hostiles . | . . . . . . Parts Fried . | . . . . . . Impact Corruptions . | . . . . . . Robots Melted . | . . . . . . Combat Hostiles . | . . . . . . Parts Melted . | . . . . . . Heat Transferred . | . . . . . . Parts Sabotaged . | . . . . . . Parts Stolen . | . . . . . . Parts Stripped . | . . . . . . Power Chain Reactions . | . . . . . . Missiles Intercepted . | . . . . . . Alert | -11 -10 -10 -9 -9 -9 ------- Run | Jun Mat Min Mat Min Exi Peak Influence 385 | . 178 69 385 193 . Initial 133 | . . 69 . 133 . Average 102 | . 57 37 228 78 . Maximum Alert Level 1 | . . . 1 . . Low Security (%) 80 | 100 100 100 26 100 . Level 1 19 | . . . 73 . . Level 2 . | . . . . . . Level 3 . | . . . . . . Level 4 . | . . . . . . Level 5 . | . . . . . . High Security . | . . . . . . Max Security . | . . . . . . Squads Dispatched 7 | . 3 . 4 . . Investigation 3 | . 1 . 2 . . Extermination . | . . . . . . Reinforcement 4 | . 2 . 2 . . Assault . | . . . . . . Garrison . | . . . . . . Intercept . | . . . . . . Searches Triggered . | . . . . . . Construction Impeded . | . . . . . . Haulers Reinforced . | . . . . . . Active Scanning Responses . | . . . . . . Cargo Convoy Interrupts . | . . . . . . Stealth | -11 -10 -10 -9 -9 -9 --------- Run | Jun Mat Min Mat Min Exi Distress Signals 4 | . . . 4 . . Communications Jammed . | . . . . . . Distress Signals . | . . . . . . Times Spotted 71 | . 27 . 28 3 13 Peak Tracking Total 9 | . 4 . 4 3 9 Tactical Retreats 5 | . . . 3 . 2 Traps | -11 -10 -10 -9 -9 -9 ------- Run | Jun Mat Min Mat Min Exi Traps Triggered 7 | . 7 . . . . Indirectly . | . . . . . . Trap Hack Attempts . | . . . . . . Triggered . | . . . . . . Disarmed . | . . . . . . Reprogrammed . | . . . . . . Reused . | . . . . . . Traps Extracted . | . . . . . . Installed . | . . . . . . Triggered . | . . . . . . Exploded 3 | . . . . . 3 Machines | -11 -10 -10 -9 -9 -9 ---------- Run | Jun Mat Min Mat Min Exi Machines Disabled 6 | . 1 . . . 5 Max in Single Turn 1 | . 1 . . . 1 Machines Repaired . | . . . . . . Machines Sabotaged . | . . . . . . Overloaded Fab Kills . | . . . . . . Hacking | -11 -10 -10 -9 -9 -9 --------- Run | Jun Mat Min Mat Min Exi Machines Accessed 13 | . 5 1 6 . 1 Terminals 9 | . 4 1 4 . . Fabricators . | . . . . . . Repair Stations . | . . . . . . Recycling Units 3 | . 1 . 2 . . Scanalyzers . | . . . . . . Garrison Access . | . . . . . . Total Hacks 38 | . 12 2 23 . 1 Successful 14 | . 4 . 9 . 1 Failed 24 | . 8 2 14 . . Catastrophic 6 | . 4 . 2 . . Database Lockouts . | . . . . . . Manual 22 | . 4 2 16 . . Terminals 28 | . 9 2 17 . . Fabricators . | . . . . . . Repair Stations . | . . . . . . Recycling Units 9 | . 3 . 6 . . Scanalyzers . | . . . . . . Garrison Access . | . . . . . . Terminal Hacks 7 | . 2 . 4 . 1 Record 1 | . . . . . 1 Robot Analysis 1 | . . . 1 . . Prototype ID Bank 2 | . . . 2 . . Branch Access Points 1 | . 1 . . . . Unreport Threat 1 | . 1 . . . . Dispatch Records 1 | . . . 1 . . Fabricator Hacks . | . . . . . . Repair Station Hacks . | . . . . . . Recycling Unit Hacks 2 | . . . 2 . . Retrieve Components 2 | . . . 2 . . Scanalyzer . | . . . . . . Garrison Access Hacks . | . . . . . . Unauthorized Hacks 5 | . 2 . 3 . . Terminals 2 | . 1 . 1 . . Operators 2 | . 1 . 1 . . Fabricators . | . . . . . . Repair Stations . | . . . . . . Recycling Units 3 | . 1 . 2 . . Tunnel 3 | . 1 . 2 . . Scanalyzers . | . . . . . . Garrison Access . | . . . . . . Data Cores Recovered . | . . . . . . Used . | . . . . . . Hacking Detections 10 | . 5 1 4 . . Full Trace Events . | . . . . . . Feedback Events . | . . . . . . Feedback Blocked . | . . . . . . Robot Schematics Acquired . | . . . . . . Robots Built . | . . . . . . Authchips . | . . . . . . Time . | . . . . . . Total Robot Build Rating . | . . . . . . Part Schematics Acquired . | . . . . . . Parts Built . | . . . . . . Authchips . | . . . . . . Time . | . . . . . . Total Part Build Rating . | . . . . . . Parts Repaired . | . . . . . . Time . | . . . . . . Parts Recycled . | . . . . . . Recycled Matter . | . . . . . . Retrieved Matter . | . . . . . . Retrieved Components 17 | . . . 17 . . Parts Scanalyzed . | . . . . . . Part Schematics Acquired . | . . . . . . Parts Damaged . | . . . . . . Bothacking | -11 -10 -10 -9 -9 -9 ------------ Run | Jun Mat Min Mat Min Exi Used RIF Installer . | . . . . . . Robots Hacked . | . . . . . . Non-combat . | . . . . . . Combat . | . . . . . . Robot Hacks Applied . | . . . . . . Relay Couplers Released . | . . . . . . Fabnet Peak Effective % . | . . . . . . Robots Rewired . | . . . . . . Allies Hacked . | . . . . . . Hacks Repelled . | . . . . . . Allies | -11 -10 -10 -9 -9 -9 -------- Run | Jun Mat Min Mat Min Exi Total Allies 4 | . . . . 4 . Largest Group 4 | . . . . 4 4 Highest-Rated Group 71 | . . . . 71 71 Highest-Rated Ally 31 | . . . . 31 31 Total Orders 1 | . . . . . 1 STAY 1 | . . . . . 1 Ally Attacks 9 | . . . . . 9 Total Damage 86 | . . . . . 86 Kills . | . . . . . . Allies Corrupted . | . . . . . . Allies Melted . | . . . . . . Intel | -11 -10 -10 -9 -9 -9 ------- Run | Jun Mat Min Mat Min Exi Robot Analysis Total 1 | . . . 1 . . Derelict Logs Recovered 3 | . . 2 . 1 . Drone Launches . | . . . . . . Drone Recoveries . | . . . . . . Exploration | -11 -10 -10 -9 -9 -9 ------------- Run | Jun Mat Min Mat Min Exi Turns Passed 4927 | 3 1529 734 1080 799 782 Spaces Moved 2336 | 3 756 418 405 432 322 Core . | . . . . . . Treads 44 | . . . . . 44 Legs 32 | 3 29 . . . . Wheels 2260 | . 727 418 405 432 278 Hover . | . . . . . . Flight . | . . . . . . Fastest Speed 100 | 120 100 175 175 175 175 Average Speed 177 | 120 169 175 184 179 191 Slowest Speed 320 | 120 175 175 190 190 320 Overloaded Moves . | . . . . . . Propulsion Burnouts . | . . . . . . Robots Hopped . | . . . . . . Cave-ins Triggered . | . . . . . . Exploration Rate (%) 61 | 2 98 87 44 78 60 Regions Visited 5 Branch Regions 3 Pre-discovered Areas 6 | . 1 2 2 . 1 Known Exits Taken 1 | . 1 . . . . Unknown Exits Taken 4 | 1 . 1 1 1 . Scrap Searched 3 | . . 2 . 1 . Spaces Dug 12 | . . . . . 12 Terrain Destroyed 20 | . . . . . 20 Melee . | . . . . . . Projectile . | . . . . . . AOE 20 | . . . . . 20 Terrain Rammed . | . . . . . . Walls Destroyed . | . . . . . . Machines Disabled . | . . . . . . Actions | -11 -10 -10 -9 -9 -9 --------- Run | Jun Mat Min Mat Min Exi Total 2823 | 2 922 421 607 443 428 Wait 147 | . 49 1 67 1 29 Move 2331 | 2 755 417 404 431 322 Hop . | . . . . . . Pick Up 68 | . 33 2 19 2 12 Fast Attach 16 | . 6 . 5 1 4 Attach 21 | . 6 . 7 1 7 Detach 4 | . 2 . . . 2 Swap 13 | . 4 . 5 . 4 Drop 50 | . 18 1 17 . 14 Fire 170 | . 47 . 82 7 34 Melee . | . . . . . . Ram 2 | . 1 . 1 . . Kick . | . . . . . . Crush 1 | . 1 . . . . Escape Stasis . | . . . . . . Rewire . | . . . . . . Trap . | . . . . . . Miscellaneous . | . . . . . . Route ------- -11/Junkyard -10/Materials (discovered 5 exits: *Mat x3 / *Min x2) -10/Mines (discovered 2 exits: *Mat x2) -9/Materials (discovered 2 exits: [*Mat] / [*Min]) -9/Mines (discovered 3 exits: [*Mat] / *Exi / [*Zio]) -9/Exiles (discovered 1 exit: [*Min]) History --------- Turn | Location | Event 1 | -11/Junkyard | Discovered new exit (range 0) 4 | -11/Junkyard | Entered Materials 4 | -10/Materials | Discovered new exit (range 8) 318 | -10/Materials | Build established: Mutant 339 | -10/Materials | Discovered new exit (range 14) 570 | -10/Materials | Identified exit to Mines 681 | -10/Materials | Discovered new exit (range 10) 950 | -10/Materials | Discovered new exit (range 8) 1094 | -10/Materials | Discovered new exit (range 11) 1533 | -10/Materials | Entered Mines 1566 | -10/Mines | Met a Derelict bent on vengeance 1642 | -10/Mines | Learned location of Storage (-8) 1794 | -10/Mines | Learned Materials emergency access door positions 2023 | -10/Mines | Discovered new exit (range 14) 2191 | -10/Mines | Received a Rocket Launcher from a helpful Derelict 2252 | -10/Mines | Discovered new exit (range 7) 2267 | -10/Mines | Entered Materials 2267 | -9/Materials | Evolved 2 slots: Utility x2 2642 | -9/Materials | Lost 3 parts (1p1n1w) 2718 | -9/Materials | Discovered new exit (range 16) 3281 | -9/Materials | Discovered new exit (range 7) 3347 | -9/Materials | Entered Mines 3427 | -9/Mines | Discovered new exit (range 8) 3458 | -9/Mines | Found a damaged Exp. Sensor Array with a note attached 3461 | -9/Mines | Found Prototype Device 3881 | -9/Mines | Learned Materials terminal intel 3917 | -9/Mines | Received a Mining Laser from a helpful Derelict 3959 | -9/Mines | Assisted by bots powering up and referring to "LRC-V3" 4128 | -9/Mines | A Derelict revealed a hidden shortcut to a safe place 4139 | -9/Mines | Deemed a non-threat by the Exiles lab entrance 4139 | -9/Mines | Discovered new exit (range 5) 4146 | -9/Mines | Entered Exiles 4146 | -9/Exiles | Accompanied by 4 allies 4190 | -9/Exiles | Discovered new exit (range 14) 4224 | -9/Exiles | Met 8R-AWN 4249 | -9/Exiles | Met EX-HEX 4308 | -9/Exiles | Met EX-BIN 4357 | -9/Exiles | Met EX-DEC 4364 | -9/Exiles | Learned location of Zion (-7) 4624 | -9/Exiles | Attacked by the Exiles 4733 | -9/Exiles | Core integrity fell below 50% 4795 | -9/Exiles | Core integrity fell below 20% 4813 | -9/Exiles | Destroyed 8R-AWN 4817 | -9/Exiles | Lost 8 parts (2p2n2u2w) 4837 | -9/Exiles | Found Prototype Device 4837 | -9/Exiles | Identified AS-neutralizer No. 17b 4852 | -9/Exiles | Found Prototype Protection 4928 | -9/Exiles | Destroyed by DAS Turret with DAS Cannon Last Messages --------------- 04829_ Identified Exp. Heat Sink. 04830_ Dropped Exp. Heat Sink. 04833_ Acquired Unknown Device. 04833_ Identified Adv. Weapon Cycler. 04837_ Acquired Prototype Device. 04837_ Identified AS-neutralizer No. 17b. 04839_ System corrupted: Energy discharge (-85). 04839_ Acquired 30 matter. 04845_ Acquired Prototype Device. 04845_ Identified Gravity Neutralizer. 04847_ Acquired 10 matter. 04852_ Acquired Prototype Protection. 04858_ Acquired 10 matter. 04859_ 4IGPPX,C|SOI36Y5EEGLUXI14JH7H 04860_ The unstable cave ceiling collapses. 04906_ System corrupted: Matter fused (-7). 04922_ System corrupted: FCS attempts to trigger Rocket Launcher. 04922_ System corrupted: Rocket Launcher misfires. 04922_ Machine disabled. 04922_ Rocket Launcher destroyed. Map ----- +----------------------------------------------------+ | ??????????????????????????????????????????????# | | ??????????????????????????????????????????????# | | ??????????????????????????????????????????????# | | ??????????????????????????????????????????????# | | ??????????????????????????????????????????????# | | ?????????????????????????????????????????????## | | ?????????????#######?????????????????????????#" | | ######???????#!!! "#?????????????????????????#" | | #""#??????# "#?????????????????????????#" | | ??????# "#?????????????????????????#" | | #????## ""#????????????####?????????#" | | #####" ""#???????????? """????????#" | | ##" ""#????????????" """#????????# | | #"" ###????????????" #????????# | | ??# ##???????????"" #????????#" | | ?????# #####?????????"" "#????????#" | | ?????### # #????????? ""?????????#" | | #######" #####??????" "?????????##" | | !!"""" % #??????# #????????##"" | | =!%"## # ####??### ###?######"" | | ! #### ####X# #"###""""""" | | ! !!#"#?# """""" " "" | | """" "#"## ##"# "" """ " | | ######### #?# ###; % % " | | ????????# #??##?#### | | ????????# #????????##; @ | | ????????# #?????????### | | ????????# #???????????## | | ????????# #????????????# | | ????????? #????????????# """""" | | ????????? #????????????## ######" | | ????????? ?????????????#" ""##????## | | ????????? ????????????##"" """##??????? | | ????????? ????????????#""" """##???????? | | ????????? ????????????#""" ""#????????? | | ????????? ????????????#"" ###??##???? | | ??????????????????????#""" t ## ##?? | | ??????????????????????#"" "?? | | ??????????????????????##"" ? | | ???????????????????????#"""" ? | | ???????????????????????## ? | | ????????????????????????#" " ?? | | ????????????????????????#"""" ""#??? | | ????????????????????????#"" ""##???? | | ????????????????????????#" """"##????? | | ????????????????????????#""" """#?????? | | ????????????????????????## ""#??????? | | ?????????????????????????#"" """##??????? | | ?????????????????????????##""" ##???????? | | ??????????????????????????##"""" ##????????? | +----------------------------------------------------+ Best States ------------- Heat Dissipation 54 Energy Generation 14 Energy Capacity 280 Matter Stores 300 Matter Capacity 300 Sight Range 16 Terrain Scan Density 10 Armor Coverage 150 Propulsion Shielding 33 Weapon Cycling 25 Evasion (%) 50 Targeting Accuracy 8 Recoil Reduction 2 Offensive Hacking 10 Item Schematics ----------------- None Robot Schematics ------------------ None Fabricated ------------ Nothing Alien Tech Used ----------------- None Achievements -------------- None Challenges ------------ None Game ------ Seed SchematicNeutronLoader Manual? 0 Play Time 00:26:08 Cumulative 217.1 hours Start 2023.02.11 @ 17:53:43 End 2023.02.11 @ 18:19:14 Sessions 1 Manual Loads 0 Difficulty Rogue Special Mode None Game No. 290 Rogue 290 Adventurer 0 Explorer 0 Win Type - Total 5 Types 1/0/3/0/0/0/1/0/0 Lore% 77 Gallery% 84 Achievement% 65 Wizard Run 0 Options --------- ASCII 0 Keyboard 0 Movement Numpad Keybinds 0 Fullscreen 1 Font 18/SmallcapsGlow Map View 76x50 Tactical HUD 1 Map Filters NONE Filters NONE Steam 1 RUN: 8fe6b362-ffbd-4c8d-bb29-6a6aa38d564e